Workbook

Sheet Data
B2: Pickup and Trailer Cost Calculator Texas Agrilife Extension and Oklahoma State University Developed by James McGrann, Professor Emeritus, Texas A&M University and Christy Waggoner, Former Programmer, Texas A&M University Update by Damona Doye and Roger Sahs, Agricultural Economics, Oklahoma State University
C5: Ranch Name: | G5: Date:
C6: OK Ranch | G6: =NOW() -> 2016-01-14T10:47:42.090
F8: Pickup | G8: Trailer
C9: Input Data | D9: Units | F9: Values | G9: Values
C11: Current Value | D11: $ | F11: 22000 | G11: 4000
C12: Total Miles Used (useful life) | D12: Mile | F12: 150000 | G12: 50000
C13: Current Mileage | D13: Mile | F13: 40000 | G13: 30000
C14: Salvage Value (trade or junk) | D14: $ | F14: 7000 | G14: 500
C15: Annual Miles of Use | D15: Mile | F15: 25000 | G15: 1000
C16: Fuel Use (miles per gallon) | D16: Gal. | F16: 18 | G16: 6
C17: Cost of Fuel | D17: $/Gal. | F17: 2.5 | G17: =F17 -> 2.5
C18: Interest Rate on Capital | D18: % | F18: 5 | G18: =F18 -> 5
C19: Monthly Loan Payments (if made) | D19: $ | F19: 0 | G19: 0
C20: Annual License & Tax | D20: $ | F20: 120 | G20: 20
C21: Annual Insurance | D21: $ | F21: 1250 | G21: 40
C22: Tire Cost (per set) | D22: $ | F22: 800 | G22: 650
C23: Tire Life in Miles | D23: Mile | F23: 25000 | G23: 20000
C24: Annual Repair & Maintenance Cost | D24: $ | F24: 1000 | G24: 200
C26: Calculated Cost for a Trip
C28: Input Data | D28: Units | F28: Value
C30: Total Miles Traveled for Trip | D30: Miles | F30: 120
C31: Total Driver Labor Required | D31: Hr. | F31: 2
C32: Driver Labor Cost per Hour | D32: $/Hr. | F32: 15
C33: Total Additional Labor Required | D33: Hr. | F33: 0
C34: Additional Labor Cost / Hour | D34: $/Hr. | F34: 0
C35: Total Number Hauled per Trip | D35: Head | F35: 10

Sheet Summary
B2: Per Mile and Annual Costs
E4: Pickup | F4: Trailer | G4: Combined
B5: Cost Components | C5: Units | E5: Values | F5: Values | G5: Costs
B7: Variable Cost
B8: Fuel | C8: $/Mi. | E8: =IF(Data!F16=0,0,Data!F17/Data!F16)*+IF(Data!F15=0,0,1) -> 0.1388888889 | F8: =IF(Data!G16=0,0,Data!G17/Data!G16)*+IF(Data!F15=0,0,1) -> 0.4166666667 | G8: =(E8+F8) -> 0.5555555556
B9: Tires | C9: $/Mi. | E9: =IF(Data!F23=0,0,Data!F22/Data!F23)*+IF(Data!F15=0,0,1) -> 0.032 | F9: =IF(Data!G23=0,0,Data!G22/Data!G23)*+IF(Data!F15=0,0,1) -> 0.0325 | G9: =(E9+F9) -> 0.0645
B10: Repair & Maintenance | C10: $/Mi. | E10: =IF(Data!F15=0,0,Data!F24/Data!F15) -> 0.04 | F10: =IF(Data!G15=0,0,Data!G24/Data!G15) -> 0.2 | G10: =(E10+F10) -> 0.24
E11: ----------- | F11: ----------- | G11: -----------
B12: Total Variable Cost | C12: $/Mi. | E12: =SUM(E8:E10) -> 0.2108888889 | F12: =SUM(F8:F10) -> 0.6491666667 | G12: =SUM(G8:G10) -> 0.8600555556
B13: Annual Variable Cost | C13: $ | E13: =(E12*Data!F15) -> 5272.222222 | F13: =(F12*Data!G15) -> 649.1666667 | G13: =(E13+F13) -> 5921.388889
B15: Fixed Costs
B16: License / Tax | C16: $/Mi. | E16: =IF(Data!F15=0,0,Data!F20/Data!F15) -> 0.0048 | F16: =IF(Data!G15=0,0,Data!G20/Data!G15) -> 0.02 | G16: =(E16+F16) -> 0.0248
B17: Insurance | C17: $/Mi. | E17: =IF(Data!F15=0,0,Data!F21/Data!F15) -> 0.05 | F17: =IF(Data!G15=0,0,Data!G21/Data!G15) -> 0.04 | G17: =(E17+F17) -> 0.09
B18: Interest (non-cash) | C18: $/Mi. | E18: =IF(OR(Data!F15=0,(Data!F12=Data!F13)),0,(((Data!F11+Data!F14)/2))*Data!F18*0.01/Data!F15) -> 0.029 | F18: =IF(OR(Data!G15=0,(Data!G12=Data!G13)),0,(((Data!G11+Data!G14)/2))*Data!G18*0.01/Data!G15) -> 0.1125 | G18: =(E18+F18) -> 0.1415
B19: Depreciation | C19: $/Mi. | E19: =IF(OR(Data!F15=0,(Data!F12=Data!F13)),0,((Data!F11-Data!F14)*Data!F15/(Data!F12-Data!F13))/Data!F15) -> 0.1363636364 | F19: =IF(OR(Data!G15=0,(Data!G12=Data!G13)),0,((Data!G11-Data!G14)*Data!G15/(Data!G12-Data!G13))/Data!G15) -> 0.175 | G19: =(E19+F19) -> 0.3113636364
E20: ----------- | F20: ----------- | G20: -----------
B21: Total Fixed Cost | C21: $/Mi. | E21: =SUM(E16:E19) -> 0.2201636364 | F21: =SUM(F16:F19) -> 0.3475 | G21: =SUM(G16:G19) -> 0.5676636364
B22: Total Annual Fixed Cost | C22: $ | E22: =(E21*Data!F15) -> 5504.090909 | F22: =(F21*Data!G15) -> 347.5 | G22: =(E22+F22) -> 5851.590909
B24: Total Cost per Mile | C24: $/Mi. | E24: =IF(Data!F15=0,0,((E13+E22)/Data!F15)) -> 0.4310525253 | F24: =IF(Data!G15=0,0,((F13+F22)/Data!G15)) -> 0.9966666667 | G24: =(G12+G21) -> 1.427719192
B25: Total Annual Cost | C25: $ | E25: =(E13+E22) -> 10776.31313 | F25: =(F13+F22) -> 996.6666667 | G25: =(E25+F25) -> 11772.9798
B26: - | C26: - | D26: - | E26: - | F26: - | G26: -
B27: Total Cash Costs per Mile | C27: $/Mi. | E27: =IF(Data!F15=0,0,E28/Data!F15) -> 0.2656888889 | F27: =IF(Data!G15=0,0,F28/Data!G15) -> 0.7091666667 | G27: =(E27+F27) -> 0.9748555556
B28: Total Cash Costs | C28: $ | E28: =(E13+Data!F19*12+Data!F20+Data!F21) -> 6642.222222 | F28: =(F13+Data!G19*12+Data!G20+Data!G21) -> 709.1666667 | G28: =(E28+F28) -> 7351.388889
B33: Calculated Cost for a Trip
E35: Per | F35: Per
B36: Cost Components | C36: Units | E36: Trip | F36: =+Data!D35 -> Head
B38: Total Variable Cost | C38: $ | E38: =(G12*Data!F30+Data!F31*Data!F32+Data!F33*Data!F34) -> 133.2066667 | F38: =IF(Data!F35=0,0,E38/Data!F35) -> 13.32066667
B39: Total Fixed Cost | C39: $ | E39: =(G21*Data!F30) -> 68.11963636 | F39: =IF(Data!F35=0,0,E39/Data!F35) -> 6.811963636
B40: Total Cost | C40: $ | E40: =SUM(E38:E39) -> 201.326303 | F40: =SUM(F38:F39) -> 20.1326303
B41: - | C41: - | D41: - | E41: - | F41: -
B42: Total Cash Cost | C42: $ | E42: =(G27*Data!F30+Data!F31*Data!F32+Data!F33*Data!F34) -> 146.9826667 | F42: =IF(Data!F35=0,0,E42/Data!F35) -> 14.69826667
B43: Total Cash Cost | C43: $/Mile | E43: =E42/Data!F30 -> 1.224855556
